[Event "Titled Tuesday Blitz October 11 Late 2022"]
[White "Besedes, Danilo"]
[Black "Rasulov, Vugar"]
[WhiteFideId "946796"]
[BlackFideId "13402390"]
[WhiteElo "2352"]
[BlackElo "2509"]
[Result "0-1"]
[Round "02"]
[TimeControl "180+1"]
[Date "2022.10.12"]
[WhiteClock "0:00:16"]
[BlackClock "0:01:41"]

1. Nf3 {[%clk 0:03:00]}  d5 {[%clk 0:02:59]} 2. d4 {[%clk 0:03:00]}  Nc6 {[%clk 0:03:00]} 3. Bf4 {[%clk 0:02:59]}  Bf5 {[%clk 0:02:59]} 4. e3 {[%clk 0:02:57]}  e6 {[%clk 0:03:00]} 5. a3 {[%clk 0:02:52]}  Bd6 {[%clk 0:02:59]} 6. Bg3 {[%clk 0:02:49]}  Nf6 {[%clk 0:02:59]} 7. c4 {[%clk 0:02:49]}  O-O {[%clk 0:02:57]} 8. Nc3 {[%clk 0:02:48]}  Ne4 {[%clk 0:02:57]} 9. Rc1 {[%clk 0:02:45]}  h6 {[%clk 0:02:52]} 10. cxd5 {[%clk 0:02:39]}  Nxc3 {[%clk 0:02:52]} 11. Rxc3 {[%clk 0:02:36]}  exd5 {[%clk 0:02:52]} 12. Be2 {[%clk 0:02:33]}  Bxg3 {[%clk 0:02:48]} 13. hxg3 {[%clk 0:02:32]}  Ne7 {[%clk 0:02:48]} 14. Ne5 {[%clk 0:02:28]}  c6 {[%clk 0:02:49]} 15. Bd3 {[%clk 0:02:13]}  Bxd3 {[%clk 0:02:43]} 16. Qxd3 {[%clk 0:02:12]}  Nc8 {[%clk 0:02:43]} 17. O-O {[%clk 0:01:55]}  Nd6 {[%clk 0:02:44]} 18. Rfc1 {[%clk 0:01:41]}  a5 {[%clk 0:02:42]} 19. Qd1 {[%clk 0:01:34]}  a4 {[%clk 0:02:41]} 20. Nd3 {[%clk 0:01:32]}  Nc4 {[%clk 0:02:38]} 21. Qe2 {[%clk 0:01:28]}  b5 {[%clk 0:02:37]} 22. Nb4 {[%clk 0:01:13]}  Qf6 {[%clk 0:02:34]} 23. Rd1 {[%clk 0:01:01]}  Rfe8 {[%clk 0:02:33]} 24. Rc2 {[%clk 0:01:00]}  Rac8 {[%clk 0:02:30]} 25. Qf3 {[%clk 0:00:59]}  Qg6 {[%clk 0:02:29]} 26. Qe2 {[%clk 0:00:54]}  Re7 {[%clk 0:02:16]} 27. Qd3 {[%clk 0:00:52]}  Qf6 {[%clk 0:02:09]} 28. Re1 {[%clk 0:00:48]}  Rce8 {[%clk 0:02:09]} 29. Rd1 {[%clk 0:00:47]}  Re6 {[%clk 0:02:10]} 30. Re1 {[%clk 0:00:45]}  h5 {[%clk 0:02:09]} 31. Qe2 {[%clk 0:00:41]}  h4 {[%clk 0:02:07]} 32. gxh4 {[%clk 0:00:42]}  Qxh4 {[%clk 0:02:07]} 33. g3 {[%clk 0:00:36]}  Qh3 {[%clk 0:02:07]} 34. Qf3 {[%clk 0:00:36]}  Rh6 {[%clk 0:02:02]} 35. Qg2 {[%clk 0:00:36]}  Qf5 {[%clk 0:02:02]} 36. Rce2 {[%clk 0:00:17]}  Rhe6 {[%clk 0:01:58]} 37. Rd1 {[%clk 0:00:17]}  g5 {[%clk 0:01:56]} 38. Nd3 {[%clk 0:00:17]}  Kg7 {[%clk 0:01:51]} 39. Nc5 {[%clk 0:00:17]}  Rh6 {[%clk 0:01:51]} 40. Rde1 {[%clk 0:00:16]}  Reh8 {[%clk 0:01:51]} 41. e4 {[%clk 0:00:16]}  dxe4 {[%clk 0:01:50]} 42. Nxe4 {[%clk 0:00:17]}  g4 {[%clk 0:01:45]} 43. Nc3 {[%clk 0:00:16]}  Qf3 {[%clk 0:01:41]} 0-1


[Site "https://www.chess.com"]

[Event "Titled Tuesday Blitz October 11 Late 2022"]
[White "Bilych, Olexiy"]
[Black "Bilan, Danila"]
[WhiteFideId "14156504"]
[BlackFideId "24161918"]
[WhiteElo "2320"]
[BlackElo "2203"]
[Result "1-0"]
[Round "02"]
[TimeControl "180+1"]
[Date "2022.10.12"]
[WhiteClock "0:00:03"]
[BlackClock "0:00:05"]

1. e4 {[%clk 0:03:00]}  c6 {[%clk 0:02:55]} 2. d4 {[%clk 0:03:00]}  d5 {[%clk 0:02:55]} 3. e5 {[%clk 0:03:00]}  c5 {[%clk 0:02:51]} 4. dxc5 {[%clk 0:02:59]}  Nc6 {[%clk 0:02:50]} 5. f4 {[%clk 0:02:58]}  e6 {[%clk 0:02:36]} 6. Be3 {[%clk 0:02:59]}  d4 {[%clk 0:02:33]} 7. Bf2 {[%clk 0:02:59]}  Bxc5 {[%clk 0:02:34]} 8. Nf3 {[%clk 0:02:59]}  Nge7 {[%clk 0:02:26]} 9. Bd3 {[%clk 0:02:58]}  Nd5 {[%clk 0:02:20]} 10. g3 {[%clk 0:02:48]}  Ne3 {[%clk 0:02:05]} 11. Bxe3 {[%clk 0:02:34]}  dxe3 {[%clk 0:02:04]} 12. Qe2 {[%clk 0:02:35]}  b6 {[%clk 0:01:54]} 13. Nc3 {[%clk 0:02:34]}  Bb7 {[%clk 0:01:51]} 14. Ne4 {[%clk 0:02:31]}  Nd4 {[%clk 0:01:07]} 15. Nxd4 {[%clk 0:02:26]}  Qxd4 {[%clk 0:01:08]} 16. c3 {[%clk 0:02:26]}  Qd5 {[%clk 0:00:50]} 17. b4 {[%clk 0:02:11]}  Be7 {[%clk 0:00:35]} 18. Rd1 {[%clk 0:02:08]}  O-O {[%clk 0:00:27]} 19. O-O {[%clk 0:01:50]}  g6 {[%clk 0:00:16]} 20. Qxe3 {[%clk 0:01:45]}  Rfd8 {[%clk 0:00:13]} 21. a3 {[%clk 0:01:35]}  Rac8 {[%clk 0:00:07]} 22. Rd2 {[%clk 0:01:22]}  Qb3 {[%clk 0:00:07]} 23. h4 {[%clk 0:00:42]}  Bxe4 {[%clk 0:00:06]} 24. Qxe4 {[%clk 0:00:35]}  Qxc3 {[%clk 0:00:04]} 25. Rfd1 {[%clk 0:00:33]}  Rd4 {[%clk 0:00:04]} 26. Qb7 {[%clk 0:00:25]}  Rc7 {[%clk 0:00:03]} 27. Qb8+ {[%clk 0:00:22]}  Rd8 {[%clk 0:00:03]} 28. Qxd8+ {[%clk 0:00:13]}  Bxd8 {[%clk 0:00:04]} 29. Kg2 {[%clk 0:00:13]}  Be7 {[%clk 0:00:05]} 30. h5 {[%clk 0:00:11]}  Kg7 {[%clk 0:00:05]} 31. g4 {[%clk 0:00:09]}  g5 {[%clk 0:00:04]} 32. f5 {[%clk 0:00:09]}  Qxe5 {[%clk 0:00:04]} 33. h6+ {[%clk 0:00:07]}  Kg8 {[%clk 0:00:04]} 34. f6 {[%clk 0:00:07]}  Bd6 {[%clk 0:00:04]} 35. Bb1 {[%clk 0:00:04]}  Qg3+ {[%clk 0:00:03]} 36. Kf1 {[%clk 0:00:04]}  Bf8 {[%clk 0:00:03]} 37. Rd8 {[%clk 0:00:03]}  Qh3+ {[%clk 0:00:04]} 38. Kf2 {[%clk 0:00:03]}  Qxh6 {[%clk 0:00:05]} 39. Bxh7+ {[%clk 0:00:02]}  Qxh7 {[%clk 0:00:04]} 40. Rxf8+ {[%clk 0:00:02]}  Kxf8 {[%clk 0:00:05]} 41. Rd8# {[%clk 0:00:03]} 1-0


[Site "https://www.chess.com"]

[Event "Titled Tuesday Blitz October 11 Late 2022"]
[White "Boros, Denes"]
[Black "Krzywda, Andrzej"]
[WhiteFideId "722340"]
[BlackFideId "1114565"]
[WhiteElo "2464"]
[BlackElo "2149"]
[Result "1-0"]
[Round "02"]
[TimeControl "180+1"]
[Date "2022.10.12"]
[WhiteClock "0:00:32"]
[BlackClock "0:00:02"]

1. d4 {[%clk 0:03:00]}  Nf6 {[%clk 0:03:00]} 2. Nc3 {[%clk 0:03:01]}  d5 {[%clk 0:02:59]} 3. Nf3 {[%clk 0:03:02]}  Bf5 {[%clk 0:02:57]} 4. Nh4 {[%clk 0:03:01]}  Bg6 {[%clk 0:02:56]} 5. Bf4 {[%clk 0:03:00]}  a6 {[%clk 0:02:56]} 6. g3 {[%clk 0:02:59]}  e6 {[%clk 0:02:56]} 7. Bg2 {[%clk 0:02:59]}  Bb4 {[%clk 0:02:56]} 8. Nxg6 {[%clk 0:02:57]}  hxg6 {[%clk 0:02:56]} 9. a3 {[%clk 0:02:57]}  Bd6 {[%clk 0:02:55]} 10. Bg5 {[%clk 0:02:56]}  c5 {[%clk 0:02:49]} 11. e4 {[%clk 0:02:54]}  cxd4 {[%clk 0:02:49]} 12. Qxd4 {[%clk 0:02:53]}  Nc6 {[%clk 0:02:49]} 13. Qd3 {[%clk 0:02:52]}  Ne5 {[%clk 0:02:43]} 14. Qd4 {[%clk 0:02:49]}  Nc6 {[%clk 0:02:38]} 15. Qd2 {[%clk 0:02:49]}  d4 {[%clk 0:02:35]} 16. Ne2 {[%clk 0:02:49]}  e5 {[%clk 0:02:34]} 17. O-O {[%clk 0:02:47]}  Be7 {[%clk 0:02:34]} 18. h4 {[%clk 0:02:47]}  Qb6 {[%clk 0:02:31]} 19. c3 {[%clk 0:02:46]}  Rd8 {[%clk 0:02:31]} 20. cxd4 {[%clk 0:02:46]}  Nxd4 {[%clk 0:02:30]} 21. Nxd4 {[%clk 0:02:44]}  Rxd4 {[%clk 0:02:26]} 22. Qc2 {[%clk 0:02:35]}  Rd8 {[%clk 0:02:20]} 23. Be3 {[%clk 0:02:28]}  Qb5 {[%clk 0:02:20]} 24. a4 {[%clk 0:02:24]}  Qd3 {[%clk 0:02:19]} 25. Qc7 {[%clk 0:02:23]}  Qd7 {[%clk 0:01:55]} 26. Qxe5 {[%clk 0:02:21]}  O-O {[%clk 0:01:50]} 27. Bg5 {[%clk 0:02:05]}  Rfe8 {[%clk 0:01:46]} 28. Qc3 {[%clk 0:02:01]}  Nxe4 {[%clk 0:01:41]} 29. Bxe4 {[%clk 0:01:55]}  Bxg5 {[%clk 0:01:41]} 30. Bxg6 {[%clk 0:01:54]}  Bd2 {[%clk 0:01:38]} 31. Qb3 {[%clk 0:01:46]}  Qd5 {[%clk 0:00:49]} 32. Bc2 {[%clk 0:01:39]}  Qe5 {[%clk 0:00:32]} 33. Rad1 {[%clk 0:01:30]}  Ba5 {[%clk 0:00:25]} 34. Bb1 {[%clk 0:01:05]}  b5 {[%clk 0:00:15]} 35. Ba2 {[%clk 0:00:57]}  Qf6 {[%clk 0:00:12]} 36. axb5 {[%clk 0:00:57]}  axb5 {[%clk 0:00:12]} 37. Rd3 {[%clk 0:00:51]}  Bb6 {[%clk 0:00:10]} 38. Rf3 {[%clk 0:00:50]}  Qe6 {[%clk 0:00:08]} 39. Rxf7 {[%clk 0:00:47]}  Qxb3 {[%clk 0:00:05]} 40. Bxb3 {[%clk 0:00:48]}  Rd3 {[%clk 0:00:05]} 41. Rf3+ {[%clk 0:00:47]}  Rxb3 {[%clk 0:00:04]} 42. Rxb3 {[%clk 0:00:48]}  Re2 {[%clk 0:00:03]} 43. Rxb5 {[%clk 0:00:47]}  Bd4 {[%clk 0:00:04]} 44. Kg2 {[%clk 0:00:46]}  Bxb2 {[%clk 0:00:03]} 45. Kf3 {[%clk 0:00:42]}  Rc2 {[%clk 0:00:03]} 46. Re1 {[%clk 0:00:41]}  Bd4 {[%clk 0:00:03]} 47. Rf1 {[%clk 0:00:39]}  Kh7 {[%clk 0:00:03]} 48. Rd5 {[%clk 0:00:37]}  Bb6 {[%clk 0:00:02]} 49. Rd3 {[%clk 0:00:38]}  Ra2 {[%clk 0:00:02]} 50. g4 {[%clk 0:00:38]}  Ra4 {[%clk 0:00:02]} 51. Kg3 {[%clk 0:00:38]}  Rb4 {[%clk 0:00:02]} 52. f4 {[%clk 0:00:37]}  Ra4 {[%clk 0:00:02]} 53. h5 {[%clk 0:00:38]}  Rb4 {[%clk 0:00:02]} 54. g5 {[%clk 0:00:38]}  Ra4 {[%clk 0:00:02]} 55. Rd6 {[%clk 0:00:33]}  Bc7 {[%clk 0:00:02]} 56. Rc6 {[%clk 0:00:32]}  Ra3+ {[%clk 0:00:02]} 57. Kg4 {[%clk 0:00:32]}  Bb8 {[%clk 0:00:02]} 58. g6+ {[%clk 0:00:31]}  Kh6 {[%clk 0:00:02]} 59. Rc8 {[%clk 0:00:32]} 1-0


[Site "https://www.chess.com"]

[Event "Titled Tuesday Blitz October 11 Late 2022"]
[White "Bortnyk, Mykola"]
[Black "Thomforde-Toates, Noah"]
[WhiteFideId "14120836"]
[BlackFideId "30951992"]
[WhiteElo "2582"]
[BlackElo "2677"]
[Result "0-1"]
[Round "02"]
[TimeControl "180+1"]
[Date "2022.10.11"]
[WhiteClock "0:00:41"]
[BlackClock "0:01:12"]

1. e4 {[%clk 0:03:00]}  c5 {[%clk 0:02:54]} 2. c3 {[%clk 0:03:01]}  d5 {[%clk 0:02:53]} 3. exd5 {[%clk 0:03:01]}  Qxd5 {[%clk 0:02:54]} 4. Nf3 {[%clk 0:03:01]}  Nc6 {[%clk 0:02:54]} 5. Na3 {[%clk 0:03:02]}  Bg4 {[%clk 0:02:53]} 6. Be2 {[%clk 0:02:54]}  Nf6 {[%clk 0:02:50]} 7. h3 {[%clk 0:02:53]}  Bh5 {[%clk 0:02:50]} 8. d4 {[%clk 0:02:53]}  e6 {[%clk 0:02:49]} 9. O-O {[%clk 0:02:47]}  O-O-O {[%clk 0:02:48]} 10. Nb5 {[%clk 0:02:36]}  a6 {[%clk 0:02:46]} 11. a4 {[%clk 0:02:36]}  axb5 {[%clk 0:02:43]} 12. axb5 {[%clk 0:02:37]}  Nb8 {[%clk 0:02:43]} 13. Ra8 {[%clk 0:02:33]}  Bd6 {[%clk 0:02:38]} 14. Be3 {[%clk 0:02:22]}  cxd4 {[%clk 0:02:35]} 15. cxd4 {[%clk 0:02:22]}  Kd7 {[%clk 0:02:36]} 16. Qa4 {[%clk 0:02:18]}  Ke7 {[%clk 0:02:33]} 17. Rd1 {[%clk 0:01:56]}  Nbd7 {[%clk 0:02:31]} 18. Ra7 {[%clk 0:01:53]}  Rc8 {[%clk 0:02:14]} 19. b3 {[%clk 0:01:49]}  Rc3 {[%clk 0:02:12]} 20. Bd2 {[%clk 0:01:40]}  Bxf3 {[%clk 0:01:57]} 21. Bxf3 {[%clk 0:01:31]}  Rxf3 {[%clk 0:01:57]} 22. gxf3 {[%clk 0:01:32]}  Qxf3 {[%clk 0:01:57]} 23. Re1 {[%clk 0:01:33]}  Qxh3 {[%clk 0:01:54]} 24. Bb4 {[%clk 0:01:32]}  Qh2+ {[%clk 0:01:31]} 25. Kf1 {[%clk 0:01:30]}  Qh1+ {[%clk 0:01:31]} 26. Ke2 {[%clk 0:01:31]}  Qe4+ {[%clk 0:01:30]} 27. Kf1 {[%clk 0:01:31]}  Qd3+ {[%clk 0:01:30]} 28. Re2 {[%clk 0:01:28]}  Qxd4 {[%clk 0:01:17]} 29. Bxd6+ {[%clk 0:01:26]}  Qxd6 {[%clk 0:01:18]} 30. Rxb7 {[%clk 0:01:19]}  Rc8 {[%clk 0:01:17]} 31. Qa1 {[%clk 0:00:53]}  Qd5 {[%clk 0:01:16]} 32. Rxd7+ {[%clk 0:00:43]}  Nxd7 {[%clk 0:01:15]} 33. Qa3+ {[%clk 0:00:41]}  Ke8 {[%clk 0:01:14]} 34. Kg1 {[%clk 0:00:41]}  Qd1+ {[%clk 0:01:12]} 0-1


[Site "https://www.chess.com"]

[Event "Titled Tuesday Blitz October 11 Late 2022"]
[White "Carlsen, Magnus"]
[Black "Slugin, Sergey"]
[WhiteFideId "1503014"]
[BlackFideId "4122569"]
[WhiteElo "2830"]
[BlackElo "2330"]
[Result "1-0"]
[Round "02"]
[TimeControl "180+1"]
[Date "2022.10.11"]
[WhiteClock "0:02:25"]
[BlackClock "0:00:38"]

1. g4 {[%clk 0:03:00]}  Nh6 {[%clk 0:02:51]} 2. g5 {[%clk 0:02:52]}  Nf5 {[%clk 0:02:50]} 3. e4 {[%clk 0:02:52]}  Nd6 {[%clk 0:02:48]} 4. Nc3 {[%clk 0:02:51]}  e5 {[%clk 0:02:47]} 5. d4 {[%clk 0:02:41]}  exd4 {[%clk 0:02:43]} 6. Qxd4 {[%clk 0:02:42]}  Nc6 {[%clk 0:02:43]} 7. Qe3 {[%clk 0:02:42]}  Be7 {[%clk 0:02:17]} 8. Bd2 {[%clk 0:02:42]}  Ne5 {[%clk 0:02:11]} 9. b3 {[%clk 0:02:38]}  h6 {[%clk 0:01:45]} 10. gxh6 {[%clk 0:02:37]}  Rxh6 {[%clk 0:01:45]} 11. Qg3 {[%clk 0:02:37]}  Ng6 {[%clk 0:01:37]} 12. Bxh6 {[%clk 0:02:36]}  gxh6 {[%clk 0:01:38]} 13. O-O-O {[%clk 0:02:35]}  Bg5+ {[%clk 0:01:29]} 14. Kb1 {[%clk 0:02:35]}  Bf4 {[%clk 0:01:24]} 15. Qd3 {[%clk 0:02:35]}  Ne5 {[%clk 0:01:19]} 16. Qd4 {[%clk 0:02:34]}  Ng6 {[%clk 0:00:54]} 17. Nf3 {[%clk 0:02:31]}  c6 {[%clk 0:00:44]} 18. Rg1 {[%clk 0:02:29]}  Qe7 {[%clk 0:00:37]} 19. Rxg6 {[%clk 0:02:25]}  fxg6 {[%clk 0:00:38]} 20. e5 {[%clk 0:02:25]} 1-0


[Site "https://www.chess.com"]

[Event "Titled Tuesday Blitz October 11 Late 2022"]
[White "Chigaev, Maksim"]
[Black "Korchmar, Vasiliy"]
[WhiteFideId "4108116"]
[BlackFideId "24131750"]
[WhiteElo "2537"]
[BlackElo "2370"]
[Result "0-1"]
[Round "02"]
[TimeControl "180+1"]
[Date "2022.10.11"]
[WhiteClock "0:00:04"]
[BlackClock "0:00:11"]

1. e4 {[%clk 0:03:00]}  c5 {[%clk 0:02:59]} 2. Nf3 {[%clk 0:03:00]}  d6 {[%clk 0:03:00]} 3. d4 {[%clk 0:02:47]}  cxd4 {[%clk 0:03:01]} 4. Nxd4 {[%clk 0:02:48]}  Nf6 {[%clk 0:03:01]} 5. Nc3 {[%clk 0:02:47]}  Nc6 {[%clk 0:03:01]} 6. f3 {[%clk 0:02:47]}  e5 {[%clk 0:03:00]} 7. Nb3 {[%clk 0:02:47]}  Be7 {[%clk 0:03:00]} 8. Be3 {[%clk 0:02:47]}  O-O {[%clk 0:02:59]} 9. Qd2 {[%clk 0:02:48]}  Be6 {[%clk 0:02:56]} 10. O-O-O {[%clk 0:02:43]}  a5 {[%clk 0:02:56]} 11. Bb5 {[%clk 0:02:44]}  Nb4 {[%clk 0:02:53]} 12. a3 {[%clk 0:02:31]}  d5 {[%clk 0:02:46]} 13. axb4 {[%clk 0:02:23]}  d4 {[%clk 0:02:43]} 14. bxa5 {[%clk 0:02:05]}  Bxb3 {[%clk 0:02:37]} 15. cxb3 {[%clk 0:02:05]}  Qxa5 {[%clk 0:02:35]} 16. Bxd4 {[%clk 0:01:56]}  exd4 {[%clk 0:02:28]} 17. Qxd4 {[%clk 0:01:57]}  Rfc8 {[%clk 0:01:57]} 18. Bd3 {[%clk 0:00:32]}  Bb4 {[%clk 0:00:59]} 19. Bc2 {[%clk 0:00:28]}  Bxc3 {[%clk 0:00:36]} 20. bxc3 {[%clk 0:00:29]}  Qa3+ {[%clk 0:00:37]} 21. Kd2 {[%clk 0:00:26]}  Rd8 {[%clk 0:00:37]} 22. Ke2 {[%clk 0:00:24]}  Rxd4 {[%clk 0:00:37]} 23. cxd4 {[%clk 0:00:24]}  g6 {[%clk 0:00:27]} 24. Rd2 {[%clk 0:00:20]}  Nh5 {[%clk 0:00:24]} 25. g3 {[%clk 0:00:20]}  Nf6 {[%clk 0:00:24]} 26. d5 {[%clk 0:00:16]}  Kg7 {[%clk 0:00:20]} 27. e5 {[%clk 0:00:14]}  Nxd5 {[%clk 0:00:15]} 28. Rxd5 {[%clk 0:00:14]}  Qb2 {[%clk 0:00:15]} 29. Rc5 {[%clk 0:00:08]}  Rd8 {[%clk 0:00:13]} 30. Rb1 {[%clk 0:00:03]}  Qd4 {[%clk 0:00:12]} 31. Rc4 {[%clk 0:00:03]}  Qd2+ {[%clk 0:00:10]} 32. Kf1 {[%clk 0:00:04]}  Qxh2 {[%clk 0:00:11]} 0-1


[Site "https://www.chess.com"]

[Event "Titled Tuesday Blitz October 11 Late 2022"]
[White "D`Arruda, Ricardo D."]
[Black "Yanchenko, Roman"]
[WhiteFideId "100692"]
[BlackFideId "4137329"]
[WhiteElo "2445"]
[BlackElo "2514"]
[Result "1-0"]
[Round "02"]
[TimeControl "180+1"]
[Date "2022.10.12"]
[WhiteClock "0:00:26"]
[BlackClock "0:00:02"]

1. Nf3 {[%clk 0:03:00]}  d5 {[%clk 0:03:00]} 2. d4 {[%clk 0:02:59]}  Nf6 {[%clk 0:03:00]} 3. g3 {[%clk 0:02:59]}  Bf5 {[%clk 0:03:00]} 4. Bg2 {[%clk 0:02:58]}  e6 {[%clk 0:03:01]} 5. O-O {[%clk 0:02:58]}  c5 {[%clk 0:03:01]} 6. c4 {[%clk 0:02:53]}  Nc6 {[%clk 0:03:01]} 7. Nc3 {[%clk 0:02:52]}  h6 {[%clk 0:03:01]} 8. Qa4 {[%clk 0:02:49]}  a6 {[%clk 0:02:30]} 9. Rd1 {[%clk 0:02:37]}  Qb6 {[%clk 0:02:13]} 10. Be3 {[%clk 0:01:48]}  Qb4 {[%clk 0:02:04]} 11. dxc5 {[%clk 0:01:43]}  Bxc5 {[%clk 0:01:36]} 12. Bxc5 {[%clk 0:01:38]}  Qxc5 {[%clk 0:01:36]} 13. cxd5 {[%clk 0:01:31]}  exd5 {[%clk 0:01:23]} 14. Rac1 {[%clk 0:01:30]}  Qc4 {[%clk 0:00:56]} 15. Qxc4 {[%clk 0:01:20]}  dxc4 {[%clk 0:00:57]} 16. Nd4 {[%clk 0:01:20]}  Bd7 {[%clk 0:00:19]} 17. Nxc6 {[%clk 0:01:16]}  Bxc6 {[%clk 0:00:20]} 18. Bxc6+ {[%clk 0:01:16]}  bxc6 {[%clk 0:00:21]} 19. Na4 {[%clk 0:01:15]}  O-O {[%clk 0:00:22]} 20. Rxc4 {[%clk 0:01:15]}  Rfe8 {[%clk 0:00:22]} 21. e3 {[%clk 0:01:14]}  Re6 {[%clk 0:00:23]} 22. Rdc1 {[%clk 0:01:14]}  Rb8 {[%clk 0:00:22]} 23. b3 {[%clk 0:01:13]}  Rc8 {[%clk 0:00:22]} 24. Nc5 {[%clk 0:01:13]}  Re5 {[%clk 0:00:22]} 25. Nxa6 {[%clk 0:01:11]}  Ra5 {[%clk 0:00:22]} 26. Nb4 {[%clk 0:01:11]}  c5 {[%clk 0:00:22]} 27. Nc2 {[%clk 0:00:54]}  Rxa2 {[%clk 0:00:22]} 28. b4 {[%clk 0:00:52]}  Nd7 {[%clk 0:00:21]} 29. Nd4 {[%clk 0:00:48]}  g5 {[%clk 0:00:14]} 30. bxc5 {[%clk 0:00:48]}  Ne5 {[%clk 0:00:14]} 31. R4c3 {[%clk 0:00:47]}  g4 {[%clk 0:00:13]} 32. c6 {[%clk 0:00:46]}  Kg7 {[%clk 0:00:10]} 33. c7 {[%clk 0:00:46]}  Kg6 {[%clk 0:00:09]} 34. Kg2 {[%clk 0:00:44]}  h5 {[%clk 0:00:08]} 35. Nb5 {[%clk 0:00:44]}  Ra6 {[%clk 0:00:08]} 36. Rc5 {[%clk 0:00:41]}  f6 {[%clk 0:00:07]} 37. Rd5 {[%clk 0:00:33]}  Rb6 {[%clk 0:00:08]} 38. Rd8 {[%clk 0:00:31]}  Rxc7 {[%clk 0:00:03]} 39. Nxc7 {[%clk 0:00:32]}  Rb2 {[%clk 0:00:03]} 40. Ne6 {[%clk 0:00:31]}  Nf3 {[%clk 0:00:03]} 41. Nf4+ {[%clk 0:00:31]}  Kf7 {[%clk 0:00:03]} 42. Rd7+ {[%clk 0:00:31]}  Ke8 {[%clk 0:00:03]} 43. Ra7 {[%clk 0:00:29]}  Kd8 {[%clk 0:00:03]} 44. Rca1 {[%clk 0:00:26]}  Ke8 {[%clk 0:00:04]} 45. Rh7 {[%clk 0:00:26]}  h4 {[%clk 0:00:03]} 46. Ra8+ {[%clk 0:00:25]}  Rb8 {[%clk 0:00:02]} 47. Rxb8# {[%clk 0:00:26]} 1-0


[Site "https://www.chess.com"]

[Event "Titled Tuesday Blitz October 11 Late 2022"]
[White "Dilmukhametov, Artur"]
[Black "Petrovic, Aleksa"]
[WhiteFideId "24179922"]
[BlackFideId "967629"]
[WhiteElo "2197"]
[BlackElo "2242"]
[Result "0-1"]
[Round "02"]
[TimeControl "180+1"]
[Date "2022.10.12"]
[WhiteClock "0:02:10"]
[BlackClock "0:00:30"]

1. e4 {[%clk 0:02:51]}  c6 {[%clk 0:02:57]} 2. Nc3 {[%clk 0:02:49]}  d5 {[%clk 0:02:58]} 3. Qf3 {[%clk 0:02:50]}  e6 {[%clk 0:02:54]} 4. d4 {[%clk 0:02:50]}  Bb4 {[%clk 0:02:46]} 5. Bd2 {[%clk 0:02:50]}  Nf6 {[%clk 0:02:44]} 6. Bd3 {[%clk 0:02:50]}  dxe4 {[%clk 0:02:40]} 7. Nxe4 {[%clk 0:02:50]}  Bxd2+ {[%clk 0:02:39]} 8. Nxd2 {[%clk 0:02:51]}  Qxd4 {[%clk 0:02:39]} 9. O-O-O {[%clk 0:02:52]}  O-O {[%clk 0:02:35]} 10. Nb3 {[%clk 0:02:51]}  Qg4 {[%clk 0:02:28]} 11. Qe3 {[%clk 0:02:51]}  Nd5 {[%clk 0:02:26]} 12. Qd2 {[%clk 0:02:51]}  Qf4 {[%clk 0:02:26]} 13. Ne2 {[%clk 0:02:51]}  Qxd2+ {[%clk 0:02:25]} 14. Rxd2 {[%clk 0:02:50]}  Nd7 {[%clk 0:02:26]} 15. a3 {[%clk 0:02:46]}  Ne5 {[%clk 0:02:24]} 16. Be4 {[%clk 0:02:46]}  Nf6 {[%clk 0:02:23]} 17. Nc3 {[%clk 0:02:45]}  b6 {[%clk 0:02:11]} 18. f4 {[%clk 0:02:44]}  Nxe4 {[%clk 0:01:59]} 19. Nxe4 {[%clk 0:02:45]}  Nc4 {[%clk 0:01:55]} 20. Rd4 {[%clk 0:02:45]}  Ba6 {[%clk 0:01:54]} 21. Rhd1 {[%clk 0:02:44]}  Rfc8 {[%clk 0:01:48]} 22. Nd6 {[%clk 0:02:38]}  Nxd6 {[%clk 0:01:46]} 23. Rxd6 {[%clk 0:02:39]}  Kf8 {[%clk 0:01:39]} 24. Nd4 {[%clk 0:02:39]}  Bb7 {[%clk 0:01:25]} 25. Rd7 {[%clk 0:02:39]}  Rab8 {[%clk 0:01:22]} 26. Nf3 {[%clk 0:02:40]}  f6 {[%clk 0:01:06]} 27. Nd4 {[%clk 0:02:40]}  Re8 {[%clk 0:01:02]} 28. f5 {[%clk 0:02:41]}  exf5 {[%clk 0:00:58]} 29. Nxf5 {[%clk 0:02:42]}  Bc8 {[%clk 0:00:57]} 30. Nxg7 {[%clk 0:02:38]}  Bxd7 {[%clk 0:00:54]} 31. Rxd7 {[%clk 0:02:39]}  Re7 {[%clk 0:00:51]} 32. Rxe7 {[%clk 0:02:40]}  Kxe7 {[%clk 0:00:52]} 33. Nf5+ {[%clk 0:02:40]}  Ke6 {[%clk 0:00:52]} 34. Nd4+ {[%clk 0:02:41]}  Kd5 {[%clk 0:00:52]} 35. Nf3 {[%clk 0:02:42]}  Re8 {[%clk 0:00:51]} 36. Kd2 {[%clk 0:02:42]}  c5 {[%clk 0:00:51]} 37. Kd3 {[%clk 0:02:42]}  h5 {[%clk 0:00:48]} 38. c4+ {[%clk 0:02:42]}  Kd6 {[%clk 0:00:48]} 39. Nd2 {[%clk 0:02:42]}  Re1 {[%clk 0:00:47]} 40. g3 {[%clk 0:02:38]}  Rh1 {[%clk 0:00:46]} 41. h4 {[%clk 0:02:39]}  f5 {[%clk 0:00:44]} 42. Ke3 {[%clk 0:02:35]}  Ke5 {[%clk 0:00:43]} 43. Nf3+ {[%clk 0:02:35]}  Kf6 {[%clk 0:00:43]} 44. b4 {[%clk 0:02:31]}  Ra1 {[%clk 0:00:41]} 45. bxc5 {[%clk 0:02:29]}  bxc5 {[%clk 0:00:42]} 46. Kf4 {[%clk 0:02:27]}  Rxa3 {[%clk 0:00:41]} 47. Ne5 {[%clk 0:02:25]}  Rc3 {[%clk 0:00:38]} 48. Nd7+ {[%clk 0:02:19]}  Ke7 {[%clk 0:00:38]} 49. Ne5 {[%clk 0:02:14]}  Kd6 {[%clk 0:00:37]} 50. Nf7+ {[%clk 0:02:13]}  Kc7 {[%clk 0:00:36]} 51. Ne5 {[%clk 0:02:12]}  a5 {[%clk 0:00:36]} 52. Kg5 {[%clk 0:02:10]}  a4 {[%clk 0:00:36]} 53. Kxh5 {[%clk 0:02:09]}  a3 {[%clk 0:00:36]} 54. g4 {[%clk 0:02:10]}  a2 {[%clk 0:00:36]} 55. gxf5 {[%clk 0:02:09]}  a1=Q {[%clk 0:00:36]} 56. f6 {[%clk 0:02:10]}  Qd1+ {[%clk 0:00:35]} 57. Kg6 {[%clk 0:02:09]}  Rg3+ {[%clk 0:00:33]} 58. Kf7 {[%clk 0:02:09]}  Qh5+ {[%clk 0:00:33]} 59. Ke6 {[%clk 0:02:10]}  Qe8+ {[%clk 0:00:33]} 60. Kf5 {[%clk 0:02:10]}  Qh5+ {[%clk 0:00:31]} 61. Ke6 {[%clk 0:02:10]}  Re3 {[%clk 0:00:31]} 62. Ke7 {[%clk 0:02:09]}  Rxe5+ {[%clk 0:00:30]} 63. Kf8 {[%clk 0:02:10]} 0-1


[Site "https://www.chess.com"]